Cogmind - Beta 14 @@@ ROGUE MODE // 2024.11.07 @ 18:22:57 Player: N.W.L Result: Destroyed by Y-72 Warden with Railgun Performance ------------- Evolutions (8) 4000 Regions Visited (22) 4400 Robots Destroyed (293) 1465 Value Destroyed (21328) 21328 Prototype IDs (58) 1160 Alien Tech Used (12) 2400 Bonus (15836) 15836 TOTAL SCORE: 50589 Bonus ------- High Alert Combat Kills 3278 Follower Combat Kills 3422 Entered Garrisons 1400 Used RIF Installer 3500 Aligned with FarCom 300 Used Core Reset Matrix 3000 Scanned by Researcher 500 Pursued by Intercept 500 Met Sigix 2000 Friendly Fire -2064 Cogmind --------- Core Integrity 0/1450 Matter 300/300 Energy 99/100 System Corruption 3% Temperature Cool (0) Movement Core (50) Location -2/Section 7 Parts ------- > --- POWER (2) -------- (None) > --- PROPULSION (4) --- (None) > --- UTILITY (14) ----- Advanced Coolant Injector Advanced Coolant Injector Experimental Optical Array Advanced Terrain Scan Processor Hacking Suite > --- WEAPON (3) ------- (None) > --- INVENTORY (5) ---- Sigix Broadsword Sigix Containment Pod Peak State ------------ > --- POWER ------------ Quantum Reactor Quantum Reactor > --- PROPULSION ------- Biometal Heavy Treads High-density Centrium Heavy Treads > --- UTILITY ---------- Advanced Power Amplifier Experimental Power Amplifier Coolant Network Advanced Coolant Injector Cargo Storage Unit Energy Well Quantum Capacitor Phase Armor Advanced Force Field Hacking Suite > --- WEAPON ----------- Heavy Proton Cannon Enhanced Nova Cannon Hardcell Cannon > --- INVENTORY -------- Quantum Reactor Light Quantum Reactor Light Quantum Reactor Advanced Medium Treads High-density Centrium Heavy Treads Advanced Coolant Injector Compact Matter Pod Advanced Matter Compressor Transdimensional Reconstructor High-powered Transdimensional Reconstructor Subatomic Replicator HERF Cannon YOLO Cannon Core Cannon Linear Accelerator Hypercooled Linear Accelerator Micro-nuke Launcher Sigix Terminator Advanced Remote Datajack Core Stripper Sigix Broadsword Sigix Containment Pod [Rating: 211] Favorites ----------- Power Light Quantum Reactor Engine Heavy Deuterium Engine Power Core Nuclear Core Reactor Light Quantum Reactor Propulsion Light Treads Treads Light Treads Leg Potential Leg Wheel Wheel Utility Hacking Suite Device Experimental Heat Sink Storage Cargo Storage Unit Processor Advanced Terrain Scan Processor Hackware Hacking Suite Protection Hardened Light Armor Plating Artifact Phase Armor Weapon Gatling Laser Energy Gun Gatling Laser Energy Cannon HERF Cannon Ballistic Gun Assault Rifle Ballistic Cannon Light Cannon Launcher Micro-nuke Launcher Special Weapon Remote Datajack Impact Weapon Core Stripper Slashing Weapon Ripper Build | -11 -10 -10 -10 -9 -8 -8 -8 -8 -8 -8 -7 -7 -6 -6 -5 -5 -4 -4 -3 -2 -2 -2 ------- Run | Yrd Mat Min Exi Min Mat Gar Mat Gar Mat Gar Fac Gar Fac Gar Fac Gar Fac Gar Res Res Qua Sec Slots Evolved 16 | . . . . . 4 . . . . . 2 . 2 . 2 . 2 . 2 2 . . Power 1 | . . . . . . . . . . . . . . . 1 . . . . . . . Propulsion 2 | . . . . . 1 . . . . . . . 1 . . . . . . . . . Utility 12 | . . . . . 2 . . . . . 2 . 1 . 1 . 2 . 2 2 . . Weapon 1 | . . . . . 1 . . . . . . . . . . . . . . . . . Parts Attached 502 | 1 19 3 1 2 16 54 5 17 7 37 16 50 24 35 20 29 15 44 10 3 49 45 Power 31 | . 2 . . . 1 2 1 . 1 . 1 3 3 . 1 2 . 4 . . 6 4 Engine 7 | . 2 . . . . . 1 . . . . 1 2 . 1 . . . . . . . Core 9 | . . . . . 1 2 . . 1 . 1 2 1 . . . . 1 . . . . Reactor 15 | . . . . . . . . . . . . . . . . 2 . 3 . . 6 4 Propulsion 44 | . 2 . . . 2 9 . 3 2 5 2 1 1 3 . 1 2 4 . . 3 4 Treads 39 | . 2 . . . . 9 . 3 2 5 1 1 1 3 . 1 2 4 . . 3 2 Leg 2 | . . . . . 2 . . . . . . . . . . . . . . . . . Wheel 3 | . . . . . . . . . . . 1 . . . . . . . . . . 2 Hover . | . . . . . . . . . . . . . . . . . . . . . . . Flight . | . . . . . . . . . . . . . . . . . . . . . . . Utility 176 | 1 3 . 1 . 5 12 2 6 4 8 7 13 9 11 11 12 8 17 4 3 20 19 Device 76 | 1 . . . . 1 6 . 1 . 4 2 6 2 5 7 5 3 8 1 1 11 12 Storage 12 | . 2 . 1 . 2 . . . . . . . 1 1 . . . 1 . 1 1 2 Processor 3 | . . . . . . . . . . . . . . . . . 1 . . . . 2 Hackware 64 | . . . . . . 3 2 4 4 . 4 6 6 5 4 7 4 8 2 1 3 1 Protection 17 | . 1 . . . 2 3 . 1 . 4 1 1 . . . . . . 1 . 2 1 Artifact 4 | . . . . . . . . . . . . . . . . . . . . . 3 1 Weapon 251 | . 12 3 . 2 8 31 2 8 . 24 6 33 11 21 8 14 5 19 6 . 20 18 Energy Gun 83 | . . . . . 5 13 1 3 . 13 3 15 5 8 2 6 2 4 . . 3 . Energy Cannon 56 | . . . . . . 1 . 1 . 2 . 5 2 7 2 1 2 6 1 . 16 10 Ballistic Gun 14 | . 6 . . . 1 5 1 1 . . . . . . . . . . . . . . Ballistic Cannon 19 | . 5 2 . 1 . 2 . . . . . 1 . . 1 . . 2 . . . 5 Launcher 12 | . . . . 1 . 2 . . . 4 . . . 1 1 1 . 1 . . . 1 Special Weapon 46 | . 1 1 . . 2 7 . 1 . . 1 7 3 3 2 6 1 5 5 . 1 . Impact Weapon 1 | . . . . . . . . . . . . . . . . . . . . . . 1 Slashing Weapon 20 | . . . . . . 1 . 2 . 5 2 5 1 2 . . . 1 . . . 1 Piercing Weapon . | . . . . . . . . . . . . . . . . . . . . . . . Special Melee Weapon . | . . . . . . . . . . . . . . . . . . . . . . . Unidentified Prototypes 22 | . . . . . 1 . . . . . 1 . . . . . 1 . . . 12 7 Corrupted Parts 4 | . . . . . . . . . . . . . . . . . . . . . . 4 System Corruption 19 | . . . . . . . . . . . . . . . . . . . . . . 19 Parts Lost 51 | . . . . . . 10 . 3 . 2 1 3 . 1 . . . 7 1 . 2 21 Power 10 | . . . . . . 1 . 1 . . 1 2 . . . . . 2 . . . 3 Propulsion 13 | . . . . . . 5 . 2 . 1 . . . . . . . . . . . 5 Utility 17 | . . . . . . . . . . . . 1 . 1 . . . 4 1 . 2 8 Weapon 11 | . . . . . . 4 . . . 1 . . . . . . . 1 . . . 5 Highest Loss Streak 10 | . . . . . . 2 . 1 . 2 1 2 . 1 . . . 4 1 . 2 10 To Critical Strikes 1 | . . . . . . . . . . . . . . . . . . . . . . 1 Average Slot Usage (%) 88 | . 96 100 100 100 99 97 100 97 97 99 97 89 84 81 78 79 82 82 79 77 82 70 Engine 3 | . 10 14 14 14 . . 2 7 . . . 1 4 6 11 9 . . . . . . Core 2 | . . . . . 8 8 6 . 7 9 7 4 1 . . . . . . . . . Reactor 2 | . . . . . . . . . . . . . . . . 1 10 8 9 8 7 7 Treads 16 | . 25 28 28 28 13 24 27 26 27 26 22 14 13 12 11 11 10 10 9 8 8 7 Device 11 | . 1 . . . 9 13 13 2 . 7 2 11 20 10 13 12 14 17 17 14 19 21 Storage 8 | . 14 14 14 14 9 9 9 9 9 9 7 7 6 6 5 5 5 5 4 4 8 7 Hackware 15 | . . . . . . 8 9 23 27 15 26 24 16 23 20 21 25 22 23 22 19 5 Protection 3 | . 12 14 14 14 18 4 3 . . 3 6 . . . . . . . . 4 . . Energy Gun 6 | . . . . . 15 21 11 3 . 18 11 15 14 10 4 4 8 5 1 . 1 . Energy Cannon 4 | . . . . . . . . 8 9 1 . 3 1 5 . 3 5 4 . . 10 8 Ballistic Gun 1 | . 18 . . . 1 2 2 5 . . . . . . . . . . . . . . Ballistic Cannon 3 | . 7 27 28 24 6 . . . . . . . . . 2 1 . 1 9 8 . 2 Special Weapon 2 | . 2 . . . 4 1 6 6 9 1 6 2 2 2 4 3 1 3 2 4 . . Peak Build Rating 211 | 9 10 10 15 16 47 47 38 42 37 50 58 73 79 86 102 113 120 127 124 132 193 211 Average Rating 83 | 6 8 9 12 15 39 33 36 37 35 40 51 63 76 80 96 101 116 110 116 122 167 183 On Entrance 64 | 6 9 9 9 15 15 47 37 37 34 36 47 58 68 74 85 98 113 118 112 123 132 193 Naked Turns . | . . . . . . . . . . . . . . . . . . . . . . . Heaviest Build 289 | 13 34 36 96 97 105 113 101 106 99 117 112 127 125 176 194 201 207 209 218 222 272 289 Greatest Support 175 | 20 40 40 40 40 60 62 62 62 60 67 67 97 140 150 150 150 145 150 150 150 165 175 Greatest Overweight (x) 22 | . . . 2 2 2 4 1 2 1 1 3 3 . 1 1 1 1 1 1 1 1 22 Average Overweight (x) . | . . . 1 2 1 1 1 1 1 1 1 1 . . 1 1 1 1 1 1 1 1 Largest Inventory Capacity 30 | 8 15 15 25 25 25 25 25 25 25 25 25 25 25 30 30 30 30 30 30 30 30 30 Average Capacity 26 | 8 14 15 22 25 23 25 25 25 25 25 25 25 25 28 30 30 30 30 30 30 30 29 Most Carried 30 | 8 14 15 22 23 25 25 25 25 25 25 25 25 25 30 30 30 30 30 30 30 30 30 Average Carried 25 | 7 11 13 17 22 18 24 24 24 24 24 24 24 24 27 29 29 29 29 29 29 29 26 Final Capacity 30 | 8 15 15 25 25 25 25 25 25 25 25 25 25 25 30 30 30 30 30 30 30 30 5 Final Carried 30 | 8 12 14 22 23 25 25 25 24 24 25 25 25 25 30 30 30 30 30 29 30 30 4 Class Distribution -------------------- 36% | Botlord-Tank 14% | Mutant 10% | Botlord-Gunner 10% | Bothacker-Skirmisher 8% | Bothacker-Mutant 3% | Tank 3% | Botlord-Mutant Dominant Class ---------------- Mutant | -10/Materials Mutant | -10/Mines Mutant | -10/Exiles Mutant | -9/Mines Tank | -8/Materials Bothacker-Skirmisher | -8/Garrison Bothacker-Mutant | -8/Materials Bothacker-Skirmisher | -8/Garrison Bothacker-Mutant | -8/Materials Commander-Skirmisher | -8/Garrison Bothacker-Tank | -7/Factory Botlord-Gunner | -7/Garrison Botlord-Tank | -6/Factory Botlord-Gunner | -6/Garrison Botlord-Tank | -5/Factory Botlord-Gunner | -5/Garrison Botlord-Tank | -4/Factory Botlord-Tank | -4/Garrison Botlord-Tank | -3/Research Botlord-Tank | -2/Research Botlord-Tank | -2/Quarantine Hauler-Tank | -2/Section 7 Resources | -11 -10 -10 -10 -9 -8 -8 -8 -8 -8 -8 -7 -7 -6 -6 -5 -5 -4 -4 -3 -2 -2 -2 ----------- Run | Yrd Mat Min Exi Min Mat Gar Mat Gar Mat Gar Fac Gar Fac Gar Fac Gar Fac Gar Res Res Qua Sec Matter Collected 10028 | 238 573 333 18 63 89 902 130 619 116 557 211 800 220 555 607 585 175 782 227 81 1335 812 Remotely 50 | . . . . . . . . . . . . . . . . . . 50 . . . . Salvage Created 15270 | 123 744 220 . 18 91 1223 . 585 77 473 317 354 226 1210 1201 410 723 1688 252 . 1460 3875 Parts 698 | 12 48 31 . 7 4 53 . 31 2 31 17 12 12 48 32 28 43 61 15 . 81 130 Haulers Intercepted 4 | . 1 . . . 1 . . . . . . . . . . . . . . . . 2 Recyclers Shooed 11 | . 3 . . 1 1 . . . . . . . . . 3 . 1 . . . 2 . Parts Field Recycled . | . . . . . . . . . . . . . . . . . . . . . . . Retrieved Matter . | . . . . . . . . . . . . . . . . . . . . . . . Parts Self-Destructed . | . . . . . . . . . . . . . . . . . . . . . . . Prevented . | . . . . . . . . . . . . . . . . . . . . . . . Kills | -11 -10 -10 -10 -9 -8 -8 -8 -8 -8 -8 -7 -7 -6 -6 -5 -5 -4 -4 -3 -2 -2 -2 ------- Run | Yrd Mat Min Exi Min Mat Gar Mat Gar Mat Gar Fac Gar Fac Gar Fac Gar Fac Gar Res Res Qua Sec Combat Hostiles Destroyed 228 | . 16 10 . 4 1 32 . 10 . 20 3 9 3 14 14 13 6 10 7 . 13 43 Melee 1 | . . . . . . . . . . 1 . . . . . . . . . . . . Guns 84 | . 11 . . . 1 24 . 8 . 7 2 8 3 9 2 . 6 3 . . . . Cannons 63 | . 5 10 . 1 . 3 . 1 . 1 . . . 1 9 5 . 4 6 . . 17 AOE 37 | . . . . 3 . 4 . . . 10 . . . 3 3 7 . 2 1 . . 4 Classes Destroyed 21 | 2 6 1 . 1 1 3 . 1 . 1 . . . . . 1 . . . . 2 2 Worker 15 | . . 4 . 2 . . . . . . 2 . 1 . 1 . 2 . . . 2 1 Builder 4 | . 2 1 . . . . . . . . . . . . . . 1 . . . . . Tunneler 8 | 4 1 2 . . . . . . . . 1 . . . . . . . . . . . Hauler 4 | . 1 . . . 1 . . . . . . . . . . . . . . . . 2 Recycler 13 | 1 1 . . . . . . . . . 2 . 1 . 6 . 1 . . . 1 . Mechanic 1 | . . . . . . . . . . . . . . . . . . . . . . 1 Operator 4 | . 1 . . . . . . . 1 . . . . . 1 . . . . . . 1 Watcher 7 | . 3 . . . . . . . . . . . . . 1 . 1 . . . . 2 Swarmer 53 | . 5 9 . 3 . 3 . 1 . 10 . 1 1 3 6 10 . 1 . . . . Grunt 75 | . 11 1 . . . 16 . 6 . 2 1 5 1 1 6 3 . 1 . . 1 20 Brawler 4 | . . . . . . 1 . . . 1 . . . . 1 . . 1 . . . . Duelist 3 | . . . . . . 2 . . . 1 . . . . . . . . . . . . Researcher 1 | . . . . . . . . . . . . . . . . . . . . . . 1 Sentry 18 | . . . . . 1 2 . 3 1 1 . 1 . . . . 2 . . . . 7 Specialist 3 | . . . . . . . . . . . . . . . . 1 . . . . . 2 Hunter 12 | . . . . . . . . 1 . 1 2 . . . . . . 4 . . . 4 Programmer 53 | . . . . . . 8 . . . 3 . 3 1 10 2 1 5 4 7 . . 9 Behemoth 1 | . . . . . . . . . . 1 . . . . . . . . . . . . Quarantine Guard 11 | . . . . . . . . . . . . . . . . . . . . . 11 . S7 Guard 1 | . . . . . . . . . . . . . . . . . . . . . . 1 Alpha 7 1 | . . . . . . . . . . . . . . . . . . . . . 1 . Fortress 1 | . . . . . . . . . . . . . . . . . . . . . 1 . Assembled 1 | . . . . 1 . . . . . . . . . . . . . . . . . . Best Kill Streak 12 | 3 3 4 . 4 1 3 . 3 1 10 4 3 3 3 4 7 4 3 3 . 3 12 Combat Bots Only 10 | . 3 3 . 3 1 3 . 3 . 10 2 3 1 3 3 7 3 3 3 . 3 10 Max Kills in Single Turn 4 | 1 2 2 . 4 1 2 . 1 1 4 2 1 1 3 2 4 2 1 1 . 1 2 Gunslinging 1 | . . . . . . 1 . . . . . . . 1 . . . . . . . . Exploded 4 | . . . . 3 . 1 . . . 4 . . . 3 2 3 . 1 1 . . 2 Melee 1 | . . . . . . . . . . 1 . . . . . . . . . . . . Uniques/NPCs Destroyed . | . . . . . . . . . . . . . . . . . . . . . . . Combat | -11 -10 -10 -10 -9 -8 -8 -8 -8 -8 -8 -7 -7 -6 -6 -5 -5 -4 -4 -3 -2 -2 -2 -------- Run | Yrd Mat Min Exi Min Mat Gar Mat Gar Mat Gar Fac Gar Fac Gar Fac Gar Fac Gar Res Res Qua Sec Hostile Shots Fired 1567 | . 47 30 . 6 15 150 3 53 9 77 30 136 34 93 56 36 24 153 62 2 54 497 Missed 443 | . 14 8 . 2 4 35 . 12 2 24 5 54 9 28 21 10 10 68 20 . 15 102 Damage Taken 19099 | . 337 185 . 33 163 1824 25 605 109 706 258 1153 471 887 523 513 163 1449 766 67 906 7956 Core 2691 | . 82 22 . . 14 236 . 114 14 43 61 183 59 76 48 46 33 203 118 . 311 1028 Absorbed by Shields 3855 | . . . . . . . . . . . . . 58 29 176 187 120 234 239 37 718 2057 Reduced by Siege Mode 692 | . . . . . . . . . . . . 13 . 89 . . . . 87 . 49 454 Redirected to Core 357 | . . . . . . . . . . . . . . . . . . . . . 162 195 Regen/Repaired (Parts) 595 | . . . . . . . . . 20 213 . . . . . . . . . 85 . 277 Core Remaining (%) 73 | 100 . . . 58 . . . . . 23 . 65 . 84 . 90 . 79 90 . . . Volleys Fired 1312 | 14 90 32 1 5 13 135 4 92 19 39 24 56 21 79 90 65 41 184 38 4 81 185 Largest 3 | 2 2 2 2 2 3 3 1 3 1 3 3 3 3 3 2 3 3 3 3 1 3 3 Hottest 300 | 40 100 100 70 70 117 182 56 186 60 240 240 240 240 253 160 245 245 210 235 10 257 300 Shots Fired 1939 | 28 177 62 2 9 28 283 4 133 23 64 35 82 34 115 101 78 64 216 63 4 113 221 Gun 903 | 28 150 . . . 9 233 2 74 . 42 20 43 21 43 22 28 42 119 . . 27 . Cannon 781 | . 24 60 2 8 14 25 . 37 11 7 . 19 2 60 46 28 17 71 46 . 85 219 Launcher 22 | . . . . 1 . 3 . . . 6 . . . 1 1 3 . 5 . . . 2 Special 233 | . 3 2 . . 5 22 2 22 12 9 15 20 11 11 32 19 5 21 17 4 1 . Kinetic 525 | 28 174 60 2 8 21 52 1 50 . . . 6 . . 33 7 . 12 42 . 1 28 Thermal 953 | . 3 2 . . 7 208 1 61 11 44 20 43 23 95 35 49 58 178 4 . 45 66 Explosive 22 | . . . . 1 . 3 . . . 6 . . . 1 1 3 . 5 . . . 2 Electromagnetic 218 | . . . . . . . . . . 5 . 13 . 8 . . 1 . . . 66 125 Robot Hit Streak 34 | 7 9 6 3 4 6 16 9 14 7 10 11 28 13 31 34 14 8 33 8 3 24 19 Robot Miss Streak 5 | 2 5 3 . 4 3 5 1 5 2 4 4 4 4 2 3 2 2 4 2 1 2 2 Penetration Max 1 | . . . . . . . . . . . . . . . . . . . . . . 1 Secondary Targets 9 | . 1 . . . . 4 . . . . 1 . . 2 . . 1 . . . . . Max Gunslinging Chain 1 | . 1 . . . . 1 . . . . 1 . . 1 . . 1 . . . . . Capacitor 101 | . . . . . . . . . . . . . . . . . . . . . . 101 Shots Hit Robots 1196 | 17 103 31 2 3 14 164 2 77 19 34 27 50 31 85 72 35 37 118 41 3 70 161 Core Hits 540 | 9 38 17 1 6 4 56 . 27 1 38 16 26 12 49 46 21 19 49 10 . 26 69 Critical Kills 13 | . . . . . . . . . . . . . . 2 . . 4 6 . . 1 . Critical Parts Destroyed 13 | . 1 . . . . 1 . 2 . . . . . . . 2 . 5 . . . 2 Critical Strikes 47 | . 2 . . . 1 7 . 3 . . . . . 2 2 2 4 11 6 . 4 3 Burn 8 | . . . . . 1 6 . 1 . . . . . . . . . . . . . . Meltdown 4 | . . . . . . . . . . . . . . 2 . . . 1 . . 1 . Destroy 22 | . 1 . . . . 1 . 2 . . . . . . . 2 4 10 . . . 2 Blast 9 | . 1 . . . . . . . . . . . . . 2 . . . 6 . . . Corrupt 4 | . . . . . . . . . . . . . . . . . . . . . 3 1 Melee Attacks 61 | . . . . . . 2 . 5 10 17 5 11 2 7 . . . . . . . 2 Kinetic 1 | . . . . . . . . . . . . . . . . . . . . . . 1 Impact . | . . . . . . . . . . . . . . . . . . . . . . . Slashing 60 | . . . . . . 2 . 5 10 17 5 11 2 7 . . . . . . . 1 Piercing . | . . . . . . . . . . . . . . . . . . . . . . . Sneak Attacks 2 | . . . . . . . . . 2 . . . . . . . . . . . . . Combat Hostiles . | . . . . . . . . . . . . . . . . . . . . . . . Follow-up Attacks . | . . . . . . . . . . . . . . . . . . . . . . . Damage Inflicted 34503 | 140 1289 582 46 215 227 3142 . 1252 265 1637 444 897 480 2689 2462 1501 1028 3851 1405 . 2099 8852 Guns 12408 | 140 1046 . . . 89 2330 . 974 . 834 444 823 480 1138 539 302 851 1927 . . 491 . Cannons 15927 | . 219 567 46 48 137 404 . 278 94 14 . 65 . 1255 1662 304 177 899 1405 . 1506 6847 Explosions 5817 | . . . . 149 . 408 . . . 741 . . . 296 261 895 . 1025 . . 90 1952 Melee 272 | . . . . . . . . . 171 48 . . . . . . . . . . . 53 Ramming 55 | . . 15 . 18 1 . . . . . . 9 . . . . . . . . 12 . Kinetic 7590 | 140 1265 567 46 48 192 485 . 764 . . . . . . 1662 191 . 310 1273 . . 647 Thermal 16443 | . 24 . . . 34 2322 . 488 94 834 444 823 480 2111 539 415 1028 2825 132 . 623 3227 Explosive 4468 | . . . . 149 . 335 . . . 741 . . . 296 261 895 . 716 . . . 1075 Electromagnetic 5675 | . . . . . . . . . . 14 . 65 . 282 . . . . . . 1464 3850 Impact . | . . . . . . . . . . . . . . . . . . . . . . . Slashing 272 | . . . . . . . . . 171 48 . . . . . . . . . . . 53 Piercing . | . . . . . . . . . . . . . . . . . . . . . . . Highest Corruption 33 | . . . . . . 4 4 4 4 6 . 2 2 4 1 2 2 4 5 . 1 33 Average Corruption 2 | . . . . . . 2 4 4 4 4 . 1 2 3 1 1 1 3 4 . 1 3 Corruption Purged 2 | . . . . . . . . . . . . . . . . . . . . . . 2 Corruption Blocked . | . . . . . . . . . . . . . . . . . . . . . . . Effects 316 | . . . . . . 35 6 34 22 48 . 27 4 30 4 18 2 34 6 . 30 16 Message Errors 75 | . . . . . . 10 1 6 3 7 . 4 . 10 2 7 . 10 2 . 8 5 Matter Fused 83 | . . . . . . 7 2 13 8 12 . 7 1 8 1 3 . 6 2 . 12 1 Heat Flow Errors 37 | . . . . . . 8 . 5 1 8 . 2 1 . 1 3 1 4 . . 1 2 Energy Discharges 29 | . . . . . . 2 . 6 1 6 . 2 . 3 . 2 . 3 . . 2 2 Parts Rejected 2 | . . . . . . . . . . . . 1 . . . . . . . . . 1 Parts Fused 5 | . . . . . . 1 . . 1 . . . . . . . . 1 1 . 1 . Data Loss (minor) 45 | . . . . . . 4 1 2 2 9 . 8 1 7 . 2 . 3 1 . 3 2 Data Loss (major) 9 | . . . . . . 1 2 . 1 1 . . 1 . . . . . . . 2 1 Misfires 18 | . . . . . . . . 2 4 2 . 2 . 1 . 1 . 5 . . 1 . Alerts 11 | . . . . . . 2 . . 1 3 . 1 . 1 . . 1 1 . . . 1 Weapon Failures 2 | . . . . . . . . . . . . . . . . . . 1 . . . 1 Overload Shots . | . . . . . . . . . . . . . . . . . . . . . . . Overflow Damage 924 | . . . . . . . . 14 50 28 . 4 . 12 91 100 . 22 84 . . 519 Projectiles 594 | . . . . . . . . 14 13 . . . . 12 36 1 . 3 84 . . 431 Explosions 289 | . . . . . . . . . . 28 . . . . 55 99 . 19 . . . 88 Melee 41 | . . . . . . . . . 37 . . 4 . . . . . . . . . . Knockbacks 45 | . 1 6 1 1 . 1 . . . . . . . . 12 . . 2 12 . . 9 Impact 1 | . . 1 . . . . . . . . . . . . . . . . . . . . Kinetic 41 | . 1 5 1 1 . 1 . . . . . . . . 11 . . 2 10 . . 9 Secondary 3 | . . . . . . . . . . . . . . . 1 . . . 2 . . . Self-Inflicted Damage 666 | . . . . . . 39 . . . . . . . . . 144 . . . . 62 421 Shots 10 | . . . . . . 1 . . . . . . . . . 2 . . . . 1 6 Rammed 5 | . . 3 . . . . . . . . . 1 . . . . . . . . 1 . Targets Rammed 7 | . . 3 . 1 1 . . . . . . 1 . . . . . . . . 1 . Kicked 1 | . . . . . 1 . . . . . . . . . . . . . . . . . Crushed 1 | . . . . 1 . . . . . . . . . . . . . . . . . . Highest Temperature 429 | . 120 105 24 48 262 429 . 347 245 351 192 409 108 191 215 257 270 218 207 . 232 199 Average Temperature 80 | . 38 40 14 20 76 149 . 85 64 86 75 157 48 52 21 59 61 35 88 . 64 58 Received Heat Transfer 2500 | . 126 15 . . 54 504 . 234 36 93 48 111 42 127 58 61 . 103 96 . 20 772 Effects 8 | . . . . . . 1 . 1 . . . 3 . . 1 2 . . . . . . Shutdowns 2 | . . . . . . 1 . 1 . . . . . . . . . . . . . . Energy Bleed 3 | . . . . . . . . . . . . 2 . . 1 . . . . . . . Interference 3 | . . . . . . . . . . . . 1 . . . 2 . . . . . . Siege Activations 35 | . . . . . . . . . . . . 1 . 3 1 . . 1 3 . 12 14 Total Turns 458 | . . . . . . . . . . . . 7 . 33 2 . . 5 48 . 132 231 Longest Duration 55 | . . . . . . . . . . . . 7 . 13 2 . . 5 22 . 24 55 Robots Corrupted 34 | . . . . . . . . . . . . . . 1 . . . . . . 11 22 Combat Hostiles 32 | . . . . . . . . . . . . . . . . . . . . . 11 21 Parts Fried 70 | . . . . . . . . . 2 . . . . 1 . . . . . . 35 32 Impact Corruptions 1 | . . . . . . . . . . . . 1 . . . . . . . . . . Robots Melted 15 | . . . . . . 1 . 1 . 1 1 1 . 3 1 1 . 2 . . 3 . Combat Hostiles 10 | . . . . . . 1 . 1 . 1 1 1 . 1 . 1 . 1 . . 2 . Parts Melted 99 | . . . . . . 22 . 6 1 3 3 9 4 11 7 6 9 3 1 . 9 5 Heat Transferred 25774 | . 50 . . . 148 4970 . 911 148 1750 1025 1725 1075 3409 1225 555 1350 3964 111 . 925 2433 Parts Sabotaged . | . . . . . . . . . . . . . . . . . . . . . . . Parts Stolen . | . . . . . . . . . . . . . . . . . . . . . . . Parts Stripped 8 | . . . . . . . . . . . . . . . . . . . . . . 8 Power Chain Reactions 5 | . . . . . . . . . . . . . . . . . . . . . 1 4 Alert | -11 -10 -10 -10 -9 -8 -8 -8 -8 -8 -8 -7 -7 -6 -6 -5 -5 -4 -4 -3 -2 -2 -2 ------- Run | Yrd Mat Min Exi Min Mat Gar Mat Gar Mat Gar Fac Gar Fac Gar Fac Gar Fac Gar Res Res Qua Sec Peak Influence 2219 | 25 243 293 . 96 98 2219 1213 1717 960 1297 723 1306 853 1188 751 1457 1046 1692 974 266 251 1197 Initial 1081 | . 16 31 . . . . 1081 775 836 147 680 125 685 179 623 319 764 610 951 126 149 87 Average 561 | 16 98 112 . 40 29 910 1146 1318 655 774 348 703 441 756 484 970 884 1206 506 181 99 537 Maximum Alert Level 5 | . 1 1 . . . 5 4 5 3 4 3 4 3 4 3 4 3 5 3 1 1 4 Low Security (%) 37 | 100 92 83 . 100 100 13 . . . 8 16 12 4 4 . . . . 29 65 97 30 Level 1 11 | . 7 16 . . . 20 . . 27 9 60 2 56 6 17 9 . . 25 34 2 20 Level 2 12 | . . . . . . 11 . . 27 15 . 37 29 38 70 12 . 6 2 . . 16 Level 3 21 | . . . . . . 17 47 27 44 51 22 37 9 34 12 35 100 32 42 . . 21 Level 4 13 | . . . . . . 21 52 58 . 15 . 10 . 16 . 42 . 49 . . . 11 Level 5 2 | . . . . . . 15 . 13 . . . . . . . . . 11 . . . . High Security . | . . . . . . . . . . . . . . . . . . . . . . . Max Security . | . . . . . . . . . . . . . . . . . . . . . . . Squads Dispatched 53 | . 2 . . . 3 . 5 . 1 . 4 . 6 . 6 . 6 . 4 . . 16 Investigation 11 | . 2 . . . . . 2 . . . 1 . 2 . 2 . 1 . 1 . . . Extermination 13 | . . . . . . . . . . . 1 . 1 . 1 . 2 . 2 . . 6 Reinforcement 16 | . . . . . . . 2 . 1 . 1 . 1 . 3 . . . 1 . . 7 Assault 3 | . . . . . . . . . . . . . 1 . . . . . . . . 2 Garrison 9 | . . . . . 3 . 1 . . . 1 . 1 . . . 3 . . . . . Intercept 1 | . . . . . . . . . . . . . . . . . . . . . . 1 Searches Triggered . | . . . . . . . . . . . . . . . . . . . . . . . Construction Impeded 1 | . . . . . . . . . . . . . . . . . . . . . . 1 Haulers Reinforced 1 | . . . . . . . . . . . . . . . . . . . . . . 1 Active Scanning Responses . | . . . . . . . . . . . . . . . . . . . . . . . Cargo Convoy Interrupts . | . . . . . . . . . . . . . . . . . . . . . . . Stealth | -11 -10 -10 -10 -9 -8 -8 -8 -8 -8 -8 -7 -7 -6 -6 -5 -5 -4 -4 -3 -2 -2 -2 --------- Run | Yrd Mat Min Exi Min Mat Gar Mat Gar Mat Gar Fac Gar Fac Gar Fac Gar Fac Gar Res Res Qua Sec Distress Signals 19 | . 1 . . . 1 . 1 . 3 . 2 . . . 4 . 2 . . 1 . 4 Communications Jammed 1 | . . . . . . . . . . . . . . . 1 . . . . . . . Distress Signals 1 | . . . . . . . . . . . . . . . 1 . . . . . . . Times Spotted 489 | . 22 17 2 5 5 43 7 25 12 33 11 37 17 26 37 28 17 35 18 7 15 70 Peak Tracking Total 10 | . 5 6 1 3 2 4 4 4 4 8 4 10 4 6 6 5 5 8 6 4 3 8 Tactical Retreats 30 | . 2 4 . . . 10 1 2 1 . 1 2 1 . 4 . . 1 . . . 1 Traps | -11 -10 -10 -10 -9 -8 -8 -8 -8 -8 -8 -7 -7 -6 -6 -5 -5 -4 -4 -3 -2 -2 -2 ------- Run | Yrd Mat Min Exi Min Mat Gar Mat Gar Mat Gar Fac Gar Fac Gar Fac Gar Fac Gar Res Res Qua Sec Traps Triggered 57 | . 1 . . . . 7 . 11 . 6 . 7 1 3 . 4 1 10 . . 5 1 Indirectly . | . . . . . . . . . . . . . . . . . . . . . . . Trap Hack Attempts . | . . . . . . . . . . . . . . . . . . . . . . . Triggered . | . . . . . . . . . . . . . . . . . . . . . . . Disarmed . | . . . . . . . . . . . . . . . . . . . . . . . Reprogrammed . | . . . . . . . . . . . . . . . . . . . . . . . Reused 2 | . . 2 . . . . . . . . . . . . . . . . . . . . Traps Extracted . | . . . . . . . . . . . . . . . . . . . . . . . Installed 2 | . . 2 . . . . . . . . . . . . . . . . . . . . Triggered 2 | . . 2 . . . . . . . . . . . . . . . . . . . . Most Traps Carried 5 | . . 5 3 3 3 3 . 4 4 4 4 4 4 4 4 4 4 4 4 4 4 . Machines | -11 -10 -10 -10 -9 -8 -8 -8 -8 -8 -8 -7 -7 -6 -6 -5 -5 -4 -4 -3 -2 -2 -2 ---------- Run | Yrd Mat Min Exi Min Mat Gar Mat Gar Mat Gar Fac Gar Fac Gar Fac Gar Fac Gar Res Res Qua Sec Machines Disabled 75 | . 1 1 . . 1 12 . 6 1 3 . 4 1 8 2 4 . 4 1 . 16 10 Max in Single Turn 2 | . 1 1 . . . 2 . 1 1 1 . 1 . 1 1 1 . 1 . . 1 1 Garrison Access 2 | . . . . . . . . . . . . . 1 . . . 1 . . . . . Garrison Relay 31 | . . . . . . 8 . 2 . 3 . 4 . 7 . 4 . 3 . . . . Phase Generator 1 | . . . . . . 1 . . . . . . . . . . . . . . . . Machines Repaired . | . . . . . . . . . . . . . . . . . . . . . . . Machines Dismantled . | . . . . . . . . . . . . . . . . . . . . . . . Machines Sabotaged . | . . . . . . . . . . . . . . . . . . . . . . . Overloaded Fab Kills . | . . . . . . . . . . . . . . . . . . . . . . . Hacking | -11 -10 -10 -10 -9 -8 -8 -8 -8 -8 -8 -7 -7 -6 -6 -5 -5 -4 -4 -3 -2 -2 -2 --------- Run | Yrd Mat Min Exi Min Mat Gar Mat Gar Mat Gar Fac Gar Fac Gar Fac Gar Fac Gar Res Res Qua Sec Machines Accessed 78 | . 10 . 2 . 1 4 3 2 4 2 3 4 8 2 7 2 5 2 1 1 12 3 Terminals 57 | . 8 . . . . 4 1 2 3 2 1 4 5 2 5 2 1 2 1 . 11 3 Fabricators 2 | . . . . . . . . . . . . . 2 . . . . . . . . . Repair Stations 2 | . . . . . . . . . . . . . . . . . . . . 1 1 . Recycling Units 7 | . 2 . . . . . 1 . . . 1 . . . 1 . 2 . . . . . Scanalyzers . | . . . . . . . . . . . . . . . . . . . . . . . Garrison Access 8 | . . . . . 1 . 1 . 1 . 1 . 1 . 1 . 2 . . . . . Total Hacks 196 | . 32 . 2 . 2 8 6 5 14 2 7 10 21 3 17 4 14 4 4 2 31 8 Successful 93 | . 13 . 2 . 1 3 3 . 7 2 6 2 8 2 8 2 11 1 2 2 14 4 Failed 103 | . 19 . . . 1 5 3 5 7 . 1 8 13 1 9 2 3 3 2 . 17 4 Catastrophic 18 | . . . . . . . 1 2 2 . . 1 3 . 1 . . 1 1 . 6 . Database Lockouts . | . . . . . . . . . . . . . . . . . . . . . . . Manual 77 | . 24 . 1 . . . . . 7 . 1 . 9 2 6 3 6 . . . 12 6 Terminals 149 | . 25 . . . . 8 3 5 12 2 2 10 14 3 13 4 3 4 4 . 29 8 Fabricators 5 | . . . . . . . . . . . . . 5 . . . . . . . . . Repair Stations 4 | . . . . . . . . . . . . . . . . . . . . 2 2 . Recycling Units 19 | . 7 . . . . . 1 . . . 3 . . . 2 . 6 . . . . . Scanalyzers . | . . . . . . . . . . . . . . . . . . . . . . . Garrison Access 17 | . . . . . 2 . 2 . 2 . 2 . 2 . 2 . 5 . . . . . Terminal Hacks 39 | . 4 . 2 . . 3 . . 3 2 . 2 4 1 4 1 . 1 2 . 9 1 Record 2 | . . . 1 . . . . . . . . . . . . . . . . . 1 . Part Schematic 2 | . . . . . . . . . . . . . . . . . . . . . 2 . Robot Analysis 2 | . 2 . . . . . . . . . . . . . . . . . . . . . Prototype ID Bank 3 | . 2 . . . . . . . . . . . . . . . . . . . 1 . Open Door 2 | . . . . . . . . . . . . . . . . . . . . . 2 . Branch Access Points 2 | . . . . . . . . . . . . . 1 . 1 . . . . . . . Emergency Access Points 3 | . . . . . . 1 . . . 1 . 1 . . . . . . . . . . Machine Index 1 | . . . . . . . . . . . . . 1 . . . . . . . . . Terminal Index 3 | . . . . . . . . . . . . . 1 . 1 . . . . . 1 . Garrison Index 1 | . . . . . . . . . . . . . . . 1 . . . . . . . Unreport Threat 7 | . . . . . . . . . 3 . . . . . 1 . . . 2 . 1 . Hauler Manifests 1 | . . . . . . . . . . . . . 1 . . . . . . . . . Registered Components 1 | . . . . . . . . . . . . . . . . . . . . . 1 . Zone Layout 1 | . . . . . . . . . . . . . . . . . . . . . . 1 Garrison Registry 5 | . . . . . . 1 . . . 1 . . . 1 . 1 . 1 . . . . Patrol Navigation 1 | . . . . . . 1 . . . . . . . . . . . . . . . . Security Stations 1 | . . . . . . . . . . . . 1 . . . . . . . . . . Derelict Proto ID Bank 1 | . . . 1 . . . . . . . . . . . . . . . . . . . Fabricator Hacks 1 | . . . . . . . . . . . . . 1 . . . . . . . . . Network Status 1 | . . . . . . . . . . . . . 1 . . . . . . . . . Repair Station Hacks 3 | . . . . . . . . . . . . . . . . . . . . 2 1 . Scan Component 2 | . . . . . . . . . . . . . . . . . . . . 1 1 . Repair 1 | . . . . . . . . . . . . . . . . . . . . 1 . . Recycling Unit Hacks 9 | . 1 . . . . . 1 . . . 3 . . . 2 . 2 . . . . . Retrieve Matter 2 | . . . . . . . . . . . 1 . . . 1 . . . . . . . Retrieve Components 7 | . 1 . . . . . 1 . . . 2 . . . 1 . 2 . . . . . Scanalyzer . | . . . . . . . . . . . . . . . . . . . . . . . Garrison Access Hacks 15 | . . . . . 1 . 2 . 2 . 2 . 2 . 2 . 4 . . . . . Unlock Access 7 | . . . . . 1 . 1 . 1 . 1 . 1 . 1 . 1 . . . . . Seal Access 1 | . . . . . . . . . . . . . . . . . 1 . . . . . Coupler Status 7 | . . . . . . . 1 . 1 . 1 . 1 . 1 . 2 . . . . . Unauthorized Hacks 26 | . 8 . . . . . . . 2 . 1 . 1 1 . 1 5 . . . 4 3 Terminals 22 | . 7 . . . . . . . 2 . 1 . 1 1 . 1 2 . . . 4 3 Botnet 7 | . 1 . . . . . . . 1 . . . . 1 . 1 1 . . . 1 1 Operators 6 | . 1 . . . . . . . 1 . 1 . 1 . . . 1 . . . . 1 Skim 9 | . 5 . . . . . . . . . . . . . . . . . . . 3 1 Fabricators . | . . . . . . . . . . . . . . . . . . . . . . . Repair Stations . | . . . . . . . . . . . . . . . . . . . . . . . Recycling Units 3 | . 1 . . . . . . . . . . . . . . . 2 . . . . . Reject 1 | . . . . . . . . . . . . . . . . . 1 . . . . . Recyclers 1 | . . . . . . . . . . . . . . . . . 1 . . . . . Tunnel 1 | . 1 . . . . . . . . . . . . . . . . . . . . . Scanalyzers . | . . . . . . . . . . . . . . . . . . . . . . . Garrison Access 1 | . . . . . . . . . . . . . . . . . 1 . . . . . Reprogram 1 | . . . . . . . . . . . . . . . . . 1 . . . . . Data Cores Recovered 2 | . 1 . . . . . . . . . 1 . . . . . . . . . . . Used 1 | . . . . . . . . . . . 1 . . . . . . . . . . . Hacking Detections 65 | . 9 . . . 1 4 3 2 4 . 3 3 7 2 5 2 4 1 1 1 10 3 Full Trace Events 14 | . 2 . . . . 1 1 2 . . . 2 2 . 2 . . 1 1 . . . Feedback Events . | . . . . . . . . . . . . . . . . . . . . . . . Feedback Blocked . | . . . . . . . . . . . . . . . . . . . . . . . Robot Schematics Acquired . | . . . . . . . . . . . . . . . . . . . . . . . Robots Built . | . . . . . . . . . . . . . . . . . . . . . . . Authchips . | . . . . . . . . . . . . . . . . . . . . . . . Time . | . . . . . . . . . . . . . . . . . . . . . . . Total Robot Build Rating . | . . . . . . . . . . . . . . . . . . . . . . . Part Schematics Acquired 7 | . . . . . . . . . . . . . . . . . . . . . 5 2 Parts Built . | . . . . . . . . . . . . . . . . . . . . . . . Authchips . | . . . . . . . . . . . . . . . . . . . . . . . Time . | . . . . . . . . . . . . . . . . . . . . . . . Total Part Build Rating . | . . . . . . . . . . . . . . . . . . . . . . . Parts Repaired 1 | . . . . . . . . . . . . . . . . . . . . 1 . . Time 26 | . . . . . . . . . . . . . . . . . . . . 26 . . Parts Recycled . | . . . . . . . . . . . . . . . . . . . . . . . Recycled Matter . | . . . . . . . . . . . . . . . . . . . . . . . Retrieved Matter 70 | . . . . . . . . . . . . . . . 70 . . . . . . . Retrieved Components 31 | . 9 . . . . . 1 . . . . . . . 10 . 11 . . . . . Parts Scanalyzed . | . . . . . . . . . . . . . . . . . . . . . . . Part Schematics Acquired . | . . . . . . . . . . . . . . . . . . . . . . . Parts Damaged . | . . . . . . . . . . . . . . . . . . . . . . . Bothacking | -11 -10 -10 -10 -9 -8 -8 -8 -8 -8 -8 -7 -7 -6 -6 -5 -5 -4 -4 -3 -2 -2 -2 ------------ Run | Yrd Mat Min Exi Min Mat Gar Mat Gar Mat Gar Fac Gar Fac Gar Fac Gar Fac Gar Res Res Qua Sec Used RIF Installer 7 | . . . . . . 1 . 1 . 1 . 1 . 1 . 1 . 1 . . . . Command Fork 3 | . . . . . . . . 1 . . . . . 1 . 1 . . . . . . Patrol Navigation 1 | . . . . . . . . . . 1 . . . . . . . . . . . . Autooverride 1 | . . . . . . . . . . . . 1 . . . . . . . . . . Autoassimilate 1 | . . . . . . . . . . . . . . . . . . 1 . . . . Robots Hacked 117 | . . . . . . 4 2 9 6 3 4 16 9 7 18 11 4 13 7 2 2 . Non-combat 22 | . . . . . . . 2 . 2 . 3 . 3 . 8 . 1 . 1 1 1 . Combat 95 | . . . . . . 4 . 9 4 3 1 16 6 7 10 11 3 13 6 1 1 . Autooverrided 11 | . . . . . . . . . . . . 1 3 . 1 . 1 3 1 . 1 . Autoassimilated 4 | . . . . . . . . . . . . . . . . . . 1 3 . . . Robot Hacks Applied 127 | . . . . . . 4 2 12 6 3 8 15 10 7 20 13 3 12 9 2 1 . parse_system 4 | . . . . . . . . . . . . . . . 1 1 . 1 1 . . . no_distress 1 | . . . . . . . . . . . . . . . 1 . . . . . . . find_chute 2 | . . . . . . . . . . . 1 . 1 . . . . . . . . . drop_inventory 7 | . . . . . . . 1 . . . . . . . 4 . 1 . . . 1 . check_alert 1 | . . . . . . . . . . . . . . . 1 . . . . . . . purge_threat 11 | . . . . . . . . . . . 3 . 3 . 1 . . . 4 . . . block_reporting 2 | . . . . . . . . . . . 1 . 1 . . . . . . . . . map_route 2 | . . . . . . . 1 . . . . . . . . . . . . 1 . . find_garrison 1 | . . . . . . . . . . . 1 . . . . . . . . . . . scatter_targeting 1 | . . . . . . . . . . . . . . . . . 1 . . . . . spike_heat 11 | . . . . . . . . 2 1 . . 1 . . 2 3 . 2 . . . . amplify_resonance 19 | . . . . . . 3 . 4 . 2 . 3 1 1 4 . . . 1 . . . reboot_system 1 | . . . . . . . . 1 . . . . . . . . . . . . . . overwrite_iff 16 | . . . . . . 1 . 2 . . . 4 1 3 2 1 . 2 . . . . formatsys_low 8 | . . . . . . . . . 2 . 1 . 2 . 2 . . . 1 . . . formatsys_high 40 | . . . . . . . . 3 3 1 1 7 1 3 2 8 1 7 2 1 . . Relay Couplers Released 131 | . . . . . . 33 . 10 . 11 . 18 1 25 . 14 4 15 . . . . Machine Destruction 127 | . . . . . . 33 . 10 . 11 . 18 1 25 . 14 4 11 . . . . Programmers 4 | . . . . . . . . . . . . . . . . . . 4 . . . . Attached 55 | . . . . . . 2 2 4 4 . 3 6 5 5 3 6 3 7 2 1 2 . Fabnet Peak Effective % . | . . . . . . . . . . . . . . . . . . . . . . . Robots Rewired 7 | . . . . . . 6 . . . . . . . . . 1 . . . . . . Allies Hacked 3 | . . . . . . . . . . . . . . . . . . 1 2 . . . Hacks Repelled . | . . . . . . . . . . . . . . . . . . . . . . . Allies | -11 -10 -10 -10 -9 -8 -8 -8 -8 -8 -8 -7 -7 -6 -6 -5 -5 -4 -4 -3 -2 -2 -2 -------- Run | Yrd Mat Min Exi Min Mat Gar Mat Gar Mat Gar Fac Gar Fac Gar Fac Gar Fac Gar Res Res Qua Sec Total Allies 107 | . . 5 . . . 7 . 6 6 2 2 16 7 7 9 12 3 15 7 2 1 . Largest Group 7 | . . 5 5 3 3 4 4 4 4 6 6 6 4 4 3 4 5 5 4 6 7 . Highest-Rated Group 363 | . . 82 82 40 40 76 69 58 67 97 109 226 142 116 85 193 230 289 205 305 363 . Highest-Rated Ally 116 | . . 31 31 16 16 31 21 16 21 21 32 85 85 41 41 49 49 116 64 64 64 . Total Orders 99 | . . . 1 . . 9 . 7 12 13 5 10 2 9 4 8 3 6 1 4 5 . STAY 48 | . . . 1 . . 5 . 4 4 5 2 5 1 5 3 5 2 3 . 1 2 . ROAM 1 | . . . . . . . . . 1 . . . . . . . . . . . . . FOLLOW 40 | . . . . . . 4 . 3 4 4 3 5 1 4 1 3 1 3 . 1 3 . AID 6 | . . . . . . . . . 2 4 . . . . . . . . . . . . DROP 1 | . . . . . . . . . 1 . . . . . . . . . . . . . EXPLORE 3 | . . . . . . . . . . . . . . . . . . . 1 2 . . Ally Attacks 682 | . . 5 2 2 28 26 14 37 31 46 45 47 30 34 35 77 47 83 26 18 49 . Total Damage 14459 | . . 45 29 15 250 438 163 394 475 843 692 1358 751 861 598 1734 1051 2426 700 456 1180 . Kills 118 | . . 1 1 1 3 8 4 8 5 6 4 15 7 8 5 16 5 13 3 3 2 . Allies Corrupted 2 | . . . . . . . . . 1 . . . . . . . . 1 . . . . Allies Melted 1 | . . . . . . . . . 1 . . . . . . . . . . . . . Intel | -11 -10 -10 -10 -9 -8 -8 -8 -8 -8 -8 -7 -7 -6 -6 -5 -5 -4 -4 -3 -2 -2 -2 ------- Run | Yrd Mat Min Exi Min Mat Gar Mat Gar Mat Gar Fac Gar Fac Gar Fac Gar Fac Gar Res Res Qua Sec Robot Analysis Total 2 | . 2 . . . . . . . . . . . . . . . . . . . . . Derelict Logs Recovered 2 | . . 1 . 1 . . . . . . . . . . . . . . . . . . Drone Launches 3 | . . . . . . . . . . . . . . . . . . . 1 2 . . Drone Recoveries 1 | . . . . . . . . . . . . . . . . . . . 1 . . . Exploration | -11 -10 -10 -10 -9 -8 -8 -8 -8 -8 -8 -7 -7 -6 -6 -5 -5 -4 -4 -3 -2 -2 -2 ------------- Run | Yrd Mat Min Exi Min Mat Gar Mat Gar Mat Gar Fac Gar Fac Gar Fac Gar Fac Gar Res Res Qua Sec Turns Passed 34333 | 126 1951 1344 741 884 901 2642 304 1884 891 1888 931 2309 1172 1444 1378 1567 1122 2040 607 360 6020 1827 Spaces Moved 11957 | 41 876 729 229 264 167 793 115 651 303 639 319 796 604 529 446 528 298 603 181 120 2203 523 Core 5 | . . . . . . . . . . . . . . . . . . . . . . 5 Treads 11637 | . 813 729 229 264 64 765 115 651 303 639 311 751 604 529 446 528 298 603 181 120 2203 491 Legs 235 | 41 63 . . . 103 28 . . . . . . . . . . . . . . . . Wheels 80 | . . . . . . . . . . . 8 45 . . . . . . . . . 27 Hover . | . . . . . . . . . . . . . . . . . . . . . . . Flight . | . . . . . . . . . . . . . . . . . . . . . . . Fastest Speed 50 | 120 120 160 160 320 170 170 235 235 240 240 145 145 170 160 240 240 240 240 240 240 232 50 Average Speed 225 | 120 157 160 244 320 209 247 235 240 240 241 241 238 170 210 240 240 247 249 240 240 236 233 Slowest Speed 465 | 120 160 160 320 320 320 465 235 320 240 243 246 410 170 240 240 240 255 255 240 240 240 410 Overloaded Moves . | . . . . . . . . . . . . . . . . . . . . . . . Propulsion Burnouts . | . . . . . . . . . . . . . . . . . . . . . . . Robots Hopped . | . . . . . . . . . . . . . . . . . . . . . . . Cave-ins Triggered . | . . . . . . . . . . . . . . . . . . . . . . . Teleports 2 | . . . . . . . . . . . . . . . . . . . . . . 2 Exploration Rate (%) 48 | 2 96 100 59 58 18 79 14 68 32 74 13 94 20 56 16 71 10 80 7 6 98 34 Regions Visited 22 Branch Regions 5 Pre-discovered Areas 3 | . 1 1 1 . . . . . . . . . . . . . . . . . . . Known Exits Taken 9 | . . 1 1 . 1 . 1 . 1 . 1 . 1 . 1 . 1 . . . . . Unknown Exits Taken 6 | 1 1 . . 1 . . . . . . . . . . . . . . 1 1 1 . Scrap Searched 3 | . . 1 . 2 . . . . . . . . . . . . . . . . . . Spaces Dug 153 | . 1 1 . 13 5 1 2 3 7 1 5 4 4 21 7 27 2 16 . . 8 25 Terrain Destroyed 582 | . 2 2 . 13 5 162 2 9 9 16 5 4 4 22 41 27 4 85 8 . 20 142 Melee 23 | . . . . . . 1 . 3 7 . 5 1 2 4 . . . . . . . . Projectile 143 | . 2 2 . . 5 2 2 6 2 . . 3 2 1 26 . 4 30 8 . 9 39 AOE 416 | . . . . 13 . 159 . . . 16 . . . 17 15 27 . 55 . . 11 103 Terrain Rammed . | . . . . . . . . . . . . . . . . . . . . . . . Walls Destroyed . | . . . . . . . . . . . . . . . . . . . . . . . Machines Disabled . | . . . . . . . . . . . . . . . . . . . . . . . Actions | -11 -10 -10 -10 -9 -8 -8 -8 -8 -8 -8 -7 -7 -6 -6 -5 -5 -4 -4 -3 -2 -2 -2 --------- Run | Yrd Mat Min Exi Min Mat Gar Mat Gar Mat Gar Fac Gar Fac Gar Fac Gar Fac Gar Res Res Qua Sec Total 17571 | 99 1275 839 409 293 682 1238 145 853 440 900 437 1114 712 732 663 764 625 941 306 193 2906 1005 Wait 3107 | 34 271 61 172 21 469 180 11 60 81 111 62 126 45 49 93 107 261 57 72 60 501 203 Move 11941 | 40 875 728 228 263 167 792 115 650 303 638 319 795 604 528 446 527 297 602 180 119 2202 523 Hop . | . . . . . . . . . . . . . . . . . . . . . . . Pick Up 246 | 6 9 6 7 1 10 33 5 5 11 22 5 29 6 13 6 15 4 17 2 4 21 9 Fast Attach 113 | 1 1 . . . 1 9 . 2 1 7 3 8 4 5 1 2 5 12 3 2 25 21 Attach 105 | . 3 . . . 4 11 . 3 1 3 3 10 4 7 4 7 3 10 2 1 9 20 Detach 25 | . 1 . . . 1 2 . 1 . 1 . 3 . 1 . . 1 1 . . 4 9 Swap 295 | . 15 3 1 2 11 34 5 12 5 27 11 32 16 23 15 20 7 22 5 . 20 9 Drop 280 | 4 10 4 . . 5 32 5 5 9 25 5 30 10 14 8 13 6 22 4 3 42 24 Fire 1312 | 14 90 32 1 5 13 135 4 92 19 39 24 56 21 79 90 65 41 184 38 4 81 185 Melee 61 | . . . . . . 2 . 5 10 17 5 11 2 7 . . . . . . . 2 Ram . | . . . . . . . . . . . . . . . . . . . . . . . Kick 1 | . . . . . 1 . . . . . . . . . . . . . . . . . Crush 6 | . . 3 . 1 . . . . . . . 1 . . . . . . . . 1 . Escape Stasis 73 | . . . . . . 8 . 18 . 10 . 10 . 5 . 8 . 14 . . . . Rewire 4 | . . . . . . . . . . . . 3 . 1 . . . . . . . . Trap 2 | . . 2 . . . . . . . . . . . . . . . . . . . . Miscellaneous . | . . . . . . . . . . . . . . . . . . . . . . . Route ------- -11/Scrapyard -10/Materials (discovered 6 exits: *Mat x3 / [*Min x2] / [*Sub]) -10/Mines (discovered 4 exits: *Mat x2 / *Exi / [*Sub]) -10/Exiles (discovered 2 exits: *Min x2) -9/Mines -8/Materials (discovered 2 exits: Fac / Gar) -8/Garrison (discovered 3 exits: *Mat x3) -8/Materials -8/Garrison (discovered 4 exits: *Fac x3 / *Mat) -8/Materials (discovered 2 exits: *Fac / Gar) -8/Garrison (discovered 3 exits: *Fac x3) -7/Factory (discovered 2 exits: *Fac / Gar) -7/Garrison (discovered 3 exits: *Fac x3) -6/Factory (discovered 7 exits: *Fac x2 / Low x2 / Ext x2 / Gar) -6/Garrison (discovered 3 exits: *Fac x3) -5/Factory (discovered 3 exits: Upp x2 / Gar) -5/Garrison (discovered 3 exits: *Fac x3) -4/Factory (discovered 2 exits: *Res / Gar) -4/Garrison (discovered 3 exits: *Res x3) -3/Research -2/Research -2/Quarantine (discovered 2 exits: [*Acc] / *Sec) -2/Section 7 History --------- Turn | Location | Event 12 | -11/Scrapyard | Discovered new exit (range 3) 127 | -11/Scrapyard | Entered Materials 313 | -10/Materials | Build established: Mutant 322 | -10/Materials | Discovered new exit (range 15) 473 | -10/Materials | Discovered new exit (range 8) 693 | -10/Materials | Discovered new exit (range 5) 734 | -10/Materials | Discovered new exit (range 9) 1573 | -10/Materials | Discovered new exit (range 10) 1779 | -10/Materials | Discovered new exit (range 16) 1910 | -10/Materials | Learned location of 2 exits from Subcaves 1937 | -10/Materials | Learned location of 1 exit from Storage 1953 | -10/Materials | Loaded intel: 9 trap records 1959 | -10/Materials | Learned location of 2 exits from Mines 2005 | -10/Materials | Learned Materials trap positions 2078 | -10/Materials | Entered Mines 2079 | -10/Mines | Identified exit to Materials 2079 | -10/Mines | Identified exit to Exiles 2182 | -10/Mines | Deemed a non-threat by the Exiles lab entrance 2224 | -10/Mines | Found a hidden stash of uninstalled traps 2761 | -10/Mines | Discovered exit to Materials (range 7) 3146 | -10/Mines | Assisted by bots powering up and referring to "LRC-V3" 3390 | -10/Mines | Discovered new exit (range 10) 3422 | -10/Mines | Entered Exiles 3422 | -10/Exiles | Accompanied by 5 allies 3423 | -10/Exiles | Identified exit to Mines 3452 | -10/Exiles | Led the pair of lost Derelicts to a safe place 3465 | -10/Exiles | Met 8R-AWN 3493 | -10/Exiles | Met EX-HEX 3534 | -10/Exiles | Met EX-BIN 3553 | -10/Exiles | Aligned with FarCom system 3555 | -10/Exiles | Given EX-Vault access code 3593 | -10/Exiles | Opened EX-Vault 3603 | -10/Exiles | Found YOLO Cannon 3607 | -10/Exiles | Found Modified TNC 3611 | -10/Exiles | Found Potential Leg 3616 | -10/Exiles | Found Potential Leg 3681 | -10/Exiles | Warned to stay clear of 0b10 Research branches 3723 | -10/Exiles | Exiles lab attacked by MAIN.C 3786 | -10/Exiles | Learned location of Zion (-7) 4163 | -10/Exiles | Stole three prototypes: Potential Leg, Modified TNC, YOLO Cannon 4163 | -10/Exiles | Entered Mines 4163 | -9/Mines | Accompanied by 3 allies 4239 | -9/Mines | Received a Rocket Launcher from a helpful Derelict 4297 | -9/Mines | Learned location of 1 exit from Materials 4326 | -9/Mines | Assembled infested the area 4859 | -9/Mines | Discovered new exit (range 7) 5047 | -9/Mines | Entered Materials 5047 | -8/Materials | Accompanied by 3 allies 5047 | -8/Materials | Evolved 4 slots: Propulsion x1, Utility x2, Weapon x1 5048 | -8/Materials | Identified exit to Factory 5049 | -8/Materials | Loaded intel: 17 trap records 5250 | -8/Materials | Garrison activated, responded to threat 5301 | -8/Materials | Lost 3 allies 5367 | -8/Materials | Build established: Tank 5948 | -8/Materials | Identified exit to Garrison 5948 | -8/Materials | Entered Garrison 5999 | -8/Garrison | Installed Relay Interface Framework 6226 | -8/Garrison | Triggered checkpoint 6298 | -8/Garrison | Garrison Relay disabled 6418 | -8/Garrison | Triggered checkpoint 6592 | -8/Garrison | Triggered checkpoint 6633 | -8/Garrison | Garrison Relay disabled 6732 | -8/Garrison | Build established: Bothacker-Skirmisher 6768 | -8/Garrison | Discovered new exit (range 10) 6886 | -8/Garrison | Garrison Relay disabled 6888 | -8/Garrison | Garrison Relay disabled 6892 | -8/Garrison | Garrison Relay disabled 6968 | -8/Garrison | Garrison Relay disabled 7300 | -8/Garrison | Phase Generator disabled 7875 | -8/Garrison | Discovered new exit (range 10) 7995 | -8/Garrison | Discovered new exit (range 25) 7995 | -8/Garrison | Discovered new exit (range 42) 7995 | -8/Garrison | Discovered new exit (range 55) 8172 | -8/Garrison | Triggered checkpoint 8216 | -8/Garrison | Garrison Relay disabled 8539 | -8/Garrison | Garrison Relay disabled 8590 | -8/Garrison | Entered Materials 8590 | -8/Materials | Accompanied by 4 allies 8772 | -8/Materials | Build established: Bothacker-Mutant 8893 | -8/Materials | Identified exit to Garrison 8893 | -8/Materials | Garrison activated, responded to threat 8894 | -8/Materials | Entered Garrison 8894 | -8/Garrison | Accompanied by 2 allies 8994 | -8/Garrison | Triggered checkpoint 9018 | -8/Garrison | Core integrity fell below 50% 9113 | -8/Garrison | Garrison Relay disabled 9114 | -8/Garrison | Build established: Bothacker-Skirmisher 9240 | -8/Garrison | Triggered checkpoint 9264 | -8/Garrison | Triggered checkpoint 9399 | -8/Garrison | Discovered exit to Factory (range 14) 9499 | -8/Garrison | Expanded RIF knowledge: Command Fork 9605 | -8/Garrison | Garrison Relay disabled 9881 | -8/Garrison | Discovered exit to Factory (range 11) 9882 | -8/Garrison | Triggered checkpoint 10163 | -8/Garrison | Discovered new exit (range 6) 10423 | -8/Garrison | Build established: Bothacker-Mutant 10548 | -8/Garrison | Discovered exit to Factory (range 12) 10778 | -8/Garrison | Entered Materials 10778 | -8/Materials | Accompanied by 3 allies 11260 | -8/Materials | Lost 3 allies 11630 | -8/Materials | Discovered exit to Factory (range 16) 11668 | -8/Materials | Identified exit to Garrison 11669 | -8/Materials | Entered Garrison 11669 | -8/Garrison | Accompanied by 4 allies 11749 | -8/Garrison | Triggered checkpoint 11822 | -8/Garrison | Garrison Relay disabled 11983 | -8/Garrison | Triggered checkpoint 11985 | -8/Garrison | Triggered checkpoint 12001 | -8/Garrison | Triggered checkpoint 12030 | -8/Garrison | Destroyed 10 combat bots 12049 | -8/Garrison | Triggered checkpoint 12261 | -8/Garrison | Triggered checkpoint 12293 | -8/Garrison | Garrison Relay disabled 12458 | -8/Garrison | Triggered checkpoint 12480 | -8/Garrison | Discovered exit to Factory (range 13) 12697 | -8/Garrison | Spotted B-75 Beast 12710 | -8/Garrison | Destroyed B-75 Beast 12852 | -8/Garrison | Found Imp. Powered Armor 12873 | -8/Garrison | Build established: Commander-Skirmisher 13133 | -8/Garrison | Expanded RIF knowledge: Patrol Navigation 13157 | -8/Garrison | Discovered exit to Factory (range 3) 13195 | -8/Garrison | Triggered checkpoint 13206 | -8/Garrison | P-60 Hacker assimilated allied Defender 3e 13261 | -8/Garrison | Garrison Relay disabled 13516 | -8/Garrison | Discovered exit to Factory (range 13) 13516 | -8/Garrison | Discovered exit to Factory (range 41) 13516 | -8/Garrison | Discovered exit to Factory (range 76) 13538 | -8/Garrison | Build established: Bothacker-Skirmisher 13557 | -8/Garrison | Entered Factory 13557 | -7/Factory | Accompanied by 4 allies 13557 | -7/Factory | Evolved 2 slots: Utility x2 13559 | -7/Factory | FarCom data flow suspended 14067 | -7/Factory | Build established: Bothacker-Mutant 14398 | -7/Factory | Discovered new exit (range 4) 14465 | -7/Factory | Garrison activated, responded to threat 14484 | -7/Factory | Identified exit to Garrison 14488 | -7/Factory | Entered Garrison 14488 | -7/Garrison | Accompanied by 4 allies 14528 | -7/Garrison | Triggered checkpoint 14564 | -7/Garrison | Garrison Relay disabled 14711 | -7/Garrison | Lost 5 allies 14760 | -7/Garrison | Triggered checkpoint 14792 | -7/Garrison | Triggered checkpoint 14802 | -7/Garrison | Triggered checkpoint 14863 | -7/Garrison | Lost 5 allies 15008 | -7/Garrison | Discovered new exit (range 10) 15096 | -7/Garrison | Spotted B-75 Beast 15101 | -7/Garrison | Assimilated Beast 4a with formatsys_high 15119 | -7/Garrison | Build established: Bothacker-Gunner 15263 | -7/Garrison | Expanded RIF knowledge: Autooverride 15403 | -7/Garrison | Garrison Relay disabled 15680 | -7/Garrison | Triggered checkpoint 15727 | -7/Garrison | Garrison Relay disabled 15820 | -7/Garrison | Discovered new exit (range 15) 15869 | -7/Garrison | Learned Factory security intel 15975 | -7/Garrison | Build established: Botlord-Gunner 16096 | -7/Garrison | Triggered checkpoint 16121 | -7/Garrison | Rescued a captive Derelict 16123 | -7/Garrison | Rescued a captive Derelict 16174 | -7/Garrison | Lost 4 allies 16217 | -7/Garrison | Garrison Relay disabled 16335 | -7/Garrison | Discovered new exit (range 13) 16797 | -7/Garrison | Entered Factory 16797 | -6/Factory | Accompanied by 3 allies 16797 | -6/Factory | Evolved 2 slots: Propulsion x1, Utility x1 16856 | -6/Factory | Build established: Botlord-Tank 17133 | -6/Factory | Discovered new exit (range 15) 17821 | -6/Factory | Discovered new exit (range 4) 17852 | -6/Factory | Identified exit to Lower Caves 17852 | -6/Factory | Identified exit to Extension 17951 | -6/Factory | Garrison activated, responded to threat 17969 | -6/Factory | Identified exit to Garrison 17969 | -6/Factory | Entered Garrison 17969 | -6/Garrison | Accompanied by 1 ally 18114 | -6/Garrison | Garrison Relay disabled 18116 | -6/Garrison | Garrison Relay disabled 18118 | -6/Garrison | Garrison Relay disabled 18120 | -6/Garrison | Garrison Relay disabled 18241 | -6/Garrison | Triggered checkpoint 18317 | -6/Garrison | Garrison Relay disabled 18705 | -6/Garrison | Triggered checkpoint 18707 | -6/Garrison | Triggered checkpoint 18713 | -6/Garrison | Triggered checkpoint 18827 | -6/Garrison | Discovered new exit (range 10) 18853 | -6/Garrison | Triggered checkpoint 18875 | -6/Garrison | Garrison Relay disabled 18968 | -6/Garrison | Build established: Botlord-Gunner 19008 | -6/Garrison | Discovered new exit (range 20) 19008 | -6/Garrison | Discovered new exit (range 58) 19008 | -6/Garrison | Discovered new exit (range 36) 19063 | -6/Garrison | Triggered checkpoint 19161 | -6/Garrison | Triggered checkpoint 19228 | -6/Garrison | Expanded RIF knowledge: Command Fork 19270 | -6/Garrison | Garrison Relay disabled 19413 | -6/Garrison | Entered Factory 19413 | -5/Factory | Accompanied by 1 ally 19413 | -5/Factory | Evolved 2 slots: Power x1, Utility x1 19873 | -5/Factory | Build established: Botlord-Tank 20404 | -5/Factory | Identified exit to Upper Caves 20530 | -5/Factory | Build established: Botlord-Gunner 20791 | -5/Factory | Identified exit to Garrison 20791 | -5/Factory | Entered Garrison 21011 | -5/Garrison | Triggered checkpoint 21065 | -5/Garrison | Discovered new exit (range 59) 21065 | -5/Garrison | Discovered new exit (range 76) 21065 | -5/Garrison | Discovered new exit (range 45) 21133 | -5/Garrison | Triggered checkpoint 21138 | -5/Garrison | Triggered checkpoint 21161 | -5/Garrison | Destroyed 7 combat bots 21219 | -5/Garrison | Garrison Relay disabled 21446 | -5/Garrison | Triggered checkpoint 21458 | -5/Garrison | Garrison Relay disabled 21501 | -5/Garrison | Garrison Relay disabled 21657 | -5/Garrison | Found Relay Coupler [Proto] 21660 | -5/Garrison | Found Relay Coupler [Proto] 21668 | -5/Garrison | Found Relay Coupler [Proto] 21671 | -5/Garrison | Found Relay Coupler [Proto] 21813 | -5/Garrison | Triggered checkpoint 21848 | -5/Garrison | Lost 3 allies 21907 | -5/Garrison | Triggered checkpoint 21944 | -5/Garrison | Expanded RIF knowledge: Command Fork 21946 | -5/Garrison | Build established: Botlord-Tank 21970 | -5/Garrison | Garrison Relay disabled 22228 | -5/Garrison | P-70 Sage assimilated allied Sentinel 6b 22358 | -5/Garrison | Entered Factory 22358 | -4/Factory | Accompanied by 4 allies 22358 | -4/Factory | Evolved 2 slots: Utility x2 22446 | -4/Factory | Garrison activated, responded to threat 22638 | -4/Factory | Discovered new exit (range 15) 22844 | -4/Factory | Identified exit to Research 23005 | -4/Factory | Garrison activated, responded to threat 23080 | -4/Factory | Identified exit to Garrison 23438 | -4/Factory | Garrison activated, responded to threat 23480 | -4/Factory | Entered Garrison 23480 | -4/Garrison | Accompanied by 3 allies 23546 | -4/Garrison | Triggered checkpoint 23571 | -4/Garrison | Garrison Relay disabled 23674 | -4/Garrison | Spotted B-86 Titan 23679 | -4/Garrison | Assimilated Titan 7a with formatsys_high 23685 | -4/Garrison | Triggered checkpoint 23690 | -4/Garrison | Triggered checkpoint 23701 | -4/Garrison | Triggered checkpoint 23708 | -4/Garrison | Triggered checkpoint 23779 | -4/Garrison | Lost 9 allies 23785 | -4/Garrison | Lost 4 parts (2p1u1w) 24006 | -4/Garrison | Triggered checkpoint 24064 | -4/Garrison | Expanded RIF knowledge: Autoassimilate 24140 | -4/Garrison | Discovered exit to Research (range 3) 24287 | -4/Garrison | Garrison Relay disabled 24542 | -4/Garrison | Triggered checkpoint 24979 | -4/Garrison | Garrison Relay disabled 25045 | -4/Garrison | Discovered exit to Research (range 10) 25237 | -4/Garrison | Discovered exit to Research (range 30) 25237 | -4/Garrison | Discovered exit to Research (range 26) 25237 | -4/Garrison | Discovered exit to Research (range 80) 25276 | -4/Garrison | Triggered checkpoint 25520 | -4/Garrison | Entered Research 25520 | -3/Research | Accompanied by 2 allies 25520 | -3/Research | Evolved 2 slots: Utility x2 25688 | -3/Research | Discovered new exit (range 50) 25886 | -3/Research | Lost 4 allies 25893 | -3/Research | P-80 Master assimilated allied Veteran 8b 26127 | -3/Research | Entered another Research area 26127 | -2/Research | Accompanied by 4 allies 26127 | -2/Research | Evolved 2 slots: Utility x2 26200 | -2/Research | Repaired Force Rifle 26421 | -2/Research | Found Launcher Loader 26455 | -2/Research | Discovered new exit (range 14) 26487 | -2/Research | Entered Quarantine 26487 | -2/Quarantine | Accompanied by 6 allies 26685 | -2/Quarantine | Cryocooling Duct disabled 26692 | -2/Quarantine | Cryocooling Duct disabled 26700 | -2/Quarantine | Ambient heat levels rising (+20) 26700 | -2/Quarantine | Non-combat units ordered to evacuate 26707 | -2/Quarantine | Ambient heat levels rising (+20) 26707 | -2/Quarantine | Combat units ordered to evacuate 26807 | -2/Quarantine | Quarantine Guard activated 26949 | -2/Quarantine | Spotted Quarantine Guard 26972 | -2/Quarantine | Allies destroyed Quarantine Guard 27077 | -2/Quarantine | Spotted Quarantine Guard 27083 | -2/Quarantine | Destroyed Quarantine Guard 27180 | -2/Quarantine | Spotted Alpha 7 27228 | -2/Quarantine | Destroyed Alpha 7 27261 | -2/Quarantine | Found Alien Launcher 27315 | -2/Quarantine | Found Alien Artifact 27315 | -2/Quarantine | Identified Phase Redirector 27476 | -2/Quarantine | Spotted Quarantine Guard 27481 | -2/Quarantine | Destroyed Quarantine Guard 27990 | -2/Quarantine | Found Alien Artifact 28129 | -2/Quarantine | Spotted Quarantine Guard 28145 | -2/Quarantine | Destroyed Quarantine Guard 28340 | -2/Quarantine | Found Alien Impact Weapon 28468 | -2/Quarantine | Spotted Quarantine Guard 28476 | -2/Quarantine | Spotted Quarantine Guard 28480 | -2/Quarantine | Spotted Quarantine Guard 28491 | -2/Quarantine | Destroyed Quarantine Guard 28502 | -2/Quarantine | Destroyed Quarantine Guard 28511 | -2/Quarantine | Destroyed Quarantine Guard 28559 | -2/Quarantine | Discovered new exit (range 7) 28592 | -2/Quarantine | Cryocooling Duct disabled 28606 | -2/Quarantine | Cryocooling Duct disabled 28607 | -2/Quarantine | Ambient heat levels rising (+20) 28621 | -2/Quarantine | Ambient heat levels rising (+20) 28628 | -2/Quarantine | Spotted Quarantine Guard 28647 | -2/Quarantine | Destroyed Quarantine Guard 28749 | -2/Quarantine | Found Alien Reactor 28749 | -2/Quarantine | Identified Matter Drive 28789 | -2/Quarantine | Build established: Botlord-Mutant 28984 | -2/Quarantine | Found Alien Artifact 28984 | -2/Quarantine | Identified Phase Armor 29199 | -2/Quarantine | Spotted Quarantine Guard 29258 | -2/Quarantine | Found Alien Energy Cannon 29317 | -2/Quarantine | Found Alien Slashing Weapon 29364 | -2/Quarantine | Identified Subatomic Replicator 29449 | -2/Quarantine | Found Alien Artifact 29464 | -2/Quarantine | Build established: Botlord-Tank 29564 | -2/Quarantine | Spotted Quarantine Guard 29701 | -2/Quarantine | Destroyed Quarantine Guard 29837 | -2/Quarantine | Destroyed Quarantine Guard 29846 | -2/Quarantine | Spotted Quarantine Guard 29852 | -2/Quarantine | Destroyed Quarantine Guard 30078 | -2/Quarantine | Met incapacitated Sigix Warrior 30078 | -2/Quarantine | Lockdown squad dispatched 30759 | -2/Quarantine | Acquired the access code to the Sigix quarantine chamber 30764 | -2/Quarantine | Unlocked Sigix quarantine chamber 30836 | -2/Quarantine | Found Sigix Containment Pod 31747 | -2/Quarantine | Identified Core Cannon 31768 | -2/Quarantine | Found Alien Artifact 31768 | -2/Quarantine | Identified Dimensional Node Initializer 31768 | -2/Quarantine | Initialized slip node 31772 | -2/Quarantine | Found Dimensional Node Initializer 31772 | -2/Quarantine | Initialized slip node 31776 | -2/Quarantine | Found Dimensional Node Initializer 31776 | -2/Quarantine | Initialized slip node 31788 | -2/Quarantine | Found Alien Artifact 32000 | -2/Quarantine | Found Alien Artifact 32257 | -2/Quarantine | Spotted Fortress 32267 | -2/Quarantine | Destroyed Fortress 32478 | -2/Quarantine | Discovered new exit (range 6) 32478 | -2/Quarantine | Spotted Quarantine Guard 32489 | -2/Quarantine | Destroyed Quarantine Guard 32507 | -2/Quarantine | Entered Section 7 32631 | -2/Section 7 | Found Alien Artifact 32631 | -2/Section 7 | Identified Core Reset Matrix 32631 | -2/Section 7 | Identified Transdimensional Reconstructor 32631 | -2/Section 7 | Identified Core Stripper 32631 | -2/Section 7 | Identified Hpw. Transdimensional Reconstructor 32631 | -2/Section 7 | Identified Sigix Broadsword 32631 | -2/Section 7 | Identified Sigix Terminator 32631 | -2/Section 7 | Used Core Reset Matrix 32635 | -2/Section 7 | Sensed 22 artifacts in vicinity 32945 | -2/Section 7 | Build established: Hauler-Tank 33004 | -2/Section 7 | Found Corrupted Unknown Device 33004 | -2/Section 7 | Identified Quantum Capacitor 33009 | -2/Section 7 | System corruption reached 10% 33043 | -2/Section 7 | System corruption reached 30% 33080 | -2/Section 7 | Found Core Reset Matrix 33083 | -2/Section 7 | Sensed 21 artifacts in vicinity 33390 | -2/Section 7 | Build established: Scavenger-Tank 33397 | -2/Section 7 | Found Integrated Dissipator 33397 | -2/Section 7 | Installed Integrated Dissipator, increased core heat dissipation (+20) 33453 | -2/Section 7 | Scanned by Researcher 33480 | -2/Section 7 | Destroyed 10 combat bots 33522 | -2/Section 7 | Intercept squad dispatched 33522 | -2/Section 7 | Warped through subspace 33732 | -2/Section 7 | Build established: Scavenger-Gunner 33734 | -2/Section 7 | Spotted S7 Guard 33753 | -2/Section 7 | Destroyed S7 Guard 33785 | -2/Section 7 | Found Prototype Protection 33785 | -2/Section 7 | Identified Hvy. Regenerative Plating 33800 | -2/Section 7 | First assault squad dispatched 33828 | -2/Section 7 | Found Core Regenerator 34042 | -2/Section 7 | Core integrity fell below 50% 34062 | -2/Section 7 | Spotted Tracker 34078 | -2/Section 7 | Warped through subspace 34108 | -2/Section 7 | Lost 10 parts (1p2n5u2w) 34291 | -2/Section 7 | Spotted B-90 Cyclops 34320 | -2/Section 7 | Core integrity fell below 20% 34334 | -2/Section 7 | Destroyed by Y-72 Warden with Railgun Last Messages --------------- 34307_ Penetrated by Slug. 34307_ Slug penetrates Wall. 34308_ Acquired 5 matter. 34311_ Activated siege mode. 34311_ Enh. Nova Cannon destroyed. 34313_ Wheel destroyed. 34313_ Dropped Cargo Storage Unit. 34314_ Dropped Imp. Kinecellerator. 34314_ Dropped Exp. Power Amplifier. 34315_ Dropped Lgt. Quantum Reactor. 34315_ Penetrated by Slug. 34315_ Dropped Exp. Power Amplifier. 34316_ Dropped Energy Well. 34316_ Dropped Lrn. Phase Cannon. 34317_ Hardcell Cannon destroyed. 34319_ Wheel destroyed. 34321_ Ended siege mode. 34322_ Penetrated by Slug. 34331_ Hdn. Centrium Heavy Treads destroyed. 34334_ Penetrated by Slug. Map ----- +----------------------------------------------------+ | | | | | | | | | ?????????????????????????????????????????????????? | | ?????????????????????????????????????????????????? | | ?????????????????????????????????????????????????? | | ?????????????????????????????????????????????????? | | ?????????????????????????????????????????????????? | | ?????????????????????????????????????????????????? | | ?????????????????????????????????????????????????? | | ?????????????????????????????????????????????????? | | ?????????????????????????????????????????????????? | | ?????????????????????????????????????????????????? | | ?????????????????????????????????????????????????? | | ?????????????????????????????????????????????????? | | ???????!?????????????????????????????????????????? | | ?????????????????????????????????????????????????? | | ?????????????????????????????????????????????????? | | ?????????????????????????????????????????????????? | | ????????????????????????????#????????????????????? | | ??????????????????????????? #????????????????????? | | ???????????????????#??????? #????????????????????? | | ??????????????#####"?????? #????????????????????? | | ??????????????# ####### #????????????????????? | | ??????????????# @ #????????????????????? | | ??????????????# Y s #????????????????????? | | ??????????????# %Q##########????????????????????? | | ??????????????## ##?#######?????????????????????? | | ???????????????#!%#? #?????????????????????? | | ???????????????#!]# """"" #?????????????????????? | | ??????????????##*|!]""""" #?????????????????????? | | ?###########+##]!*# "!" #?????????????????????? | | ?# !/]!]# """ #?????????????????????? | | ?# = !]!]+? #?????????????????????? | | ##*%#######""###!*#?? #?????????????????????? | | ?"=[#???# ! # #??? #?????????????????????? | | ?#==#???# % # #???? #?????????????????????? | | ?#%!#???# ] # #?????+###?????????????????????? | | ?#==#???# # #??????????????????????????????? | | ##==##### # ??????????????????????????????? | | =*== + # ??????????????????????????????? | | #"+##########+## ?????????????????????????????? | | #????# * ?????????????????????????????? | | #????# ????????!???????????????????? | | #????# ????????????????????????????? | | #????# "" "" ????????????????????????????? | | "" """ #????+ ""R"" ???????????????????????????? | | "" """ #????# """" ???????????????????????????? | | "" """ #????# ? ??????????????????????????? | +----------------------------------------------------+ Best States ------------- Heat Dissipation 197 Coolant Potential 200 Energy Generation 89 Energy Capacity 950 Matter Stores 450 Matter Capacity 700 Sight Range 23 Terrain Scan Range 16 Terrain Scan Density 210 Jamming Range 12 Power Amplification 110 Armor Coverage 1200 Evasion (%) 55 Recoil Reduction 4 Kinecelleration 40 Offensive Hacking 24 Defensive Hacking 12 Relay Coupler Types 5 Relay Coupler Value 133 Trap Extractor Capacity 6 Item Schematics ----------------- Cld. Gravmag System | -2/Section 7 | Archive Graviton Reactor | -2/Section 7 | Archive Robot Schematics ------------------ None Fabricated ------------ Nothing Alien Tech Used ----------------- Phase Redirector Matter Drive Phase Armor Subatomic Replicator Core Cannon Dimensional Node Initializer Core Reset Matrix Sigix Broadsword Integrated Dissipator High-powered Transdimensional Reconstructor Core Stripper Transdimensional Reconstructor Achievements -------------- None Challenges ------------ None Game ------ Seed BehemothHypervelocityLegs Manual? 0 Play Time 05:13:28 Cumulative 361.9 hours Start 2024.11.03 @ 17:26:37 End 2024.11.07 @ 18:22:57 Sessions 12 Manual Loads 0 Difficulty Rogue Special Mode None Game No. 176 Rogue 176 Adventurer 0 Explorer 0 Win Type - Total 11 Types 6/1/4/0/0/0/0/0/0 Lore% 86 Gallery% 89 Achievement% 73 Wizard Run 0 Options --------- Layout 0 ASCII 0 Keyboard 0 Movement Mouse Keybinds 0 Fullscreen 2 Font 12/Smallcaps Map View 83x54 Zoom Use 0% Tactical HUD 1 Map Filters NONE Filters NONE Steam 1 RUN: 6109c31d-347b-4a63-81a7-904768c90c42